bitfinex/quotes_ETHUSD_20251111
["timestamp","ask_amount","ask_price","bid_price","bid_amount"]
[1762830729958,6.18336005,3626.2,3626.1,1e-08]
[1762830730154,6.92478353,3626.2,3626.1,1e-08]
[1762830730375,6.18336005,3626.2,3626.1,1e-08]
[1762830731160,6.18336005,3626.2,3626.1,0.48560001]
[1762830731594,6.18336005,3626.2,3626.1,0.62890001]
[1762830731807,6.18336005,3626.2,3626.1,1.10370001]
[1762830731808,2.75770779,3626.2,3626.1,1.10370001]
[1762830732091,2.75770779,3626.2,3626.1,0.62890001]
[1762830732397,2.75770779,3626.2,3626.1,1.10370001]
[1762830732863,2.75770779,3626.2,3626.1,1e-08]
[1762830733064,3.30924029,3626.2,3626.1,0.96040001]
[1762830733372,2.75770779,3626.2,3626.1,0.96040001]
[1762830734152,3.24560779,3626.2,3626.1,1e-08]
[1762830734348,3.73750779,3626.2,3626.1,1e-08]
[1762830734591,4.88592408,3626.2,3626.1,1e-08]
[1762830734904,6.88931158,3626.2,3626.1,1e-08]
[1762830736265,6.39741158,3626.2,3626.1,1e-08]
[1762830736667,5.16583608,3626.2,3626.1,1e-08]
[1762830736864,5.16583608,3626.2,3626.1,0.48560001]
[1762830737594,3.90612408,3626.2,3626.1,0.96040001]
[1762830737899,2.75770779,3626.2,3626.1,0.96040001]
[1762830738865,5.42241995,3626.2,3626.1,0.96040001]
[1762830739099,5.42241995,3626.2,3625.5,0.1433]
[1762830739100,2.75816416,3625.6,3625.5,0.1433]
[1762830739600,2.75824024,3625.5,3625.4,0.002]
[1762830739989,2.75824024,3625.5,3625.4,0.0865]
[1762830740916,2.75824024,3625.5,3625.4,0.171]
[1762830741264,2.75824024,3625.5,3625.4,0.0865]
[1762830741793,2.75824024,3625.5,3625.4,0.171]
[1762830743166,3.5763519,3625.5,3625.4,0.0865]
[1762830744464,3.5763519,3625.5,3625.4,0.002]
[1762830744669,3.5763519,3625.5,3625.4,0.0865]
[1762830744934,2.75824024,3625.5,3625.4,0.0865]
[1762830747493,2.75824024,3625.5,3625.4,0.171]
[1762830750332,2.75824024,3625.5,3625.4,0.0865]
[1762830750815,2.75824024,3625.5,3625.4,0.171]
[1762830751897,2.75824024,3625.5,3625.4,0.0865]
[1762830752097,6.70915747,3625.5,3625.4,0.002]
[1762830752297,6.24105747,3625.5,3625.4,0.002]
[1762830752538,6.24105747,3625.5,3625.4,0.0865]
[1762830752955,6.24105747,3625.5,3625.4,0.002]
[1762830753342,6.24105747,3625.5,3625.4,0.0865]
[1762830753580,6.24105747,3625.5,3625.4,0.002]
[1762830754360,6.70915747,3625.5,3625.4,0.002]
[1762830754559,7.16365747,3625.5,3625.4,0.002]
[1762830755057,6.24105747,3625.5,3625.4,0.002]
[1762830755693,6.70915747,3625.5,3625.4,0.002]
[1762830755844,7.16365747,3625.5,3625.4,0.002]
[1762830756277,6.70915747,3625.5,3625.4,0.002]
[1762830756890,6.24105747,3625.5,3625.4,0.002]
[1762830757539,6.70915747,3625.5,3625.4,0.002]
[1762830757764,7.16365747,3625.5,3625.4,0.002]
[1762830758284,0.7439682,3626.0,3625.4,0.0865]
[1762830758470,5.42257206,3626.0,3625.9,0.0845]
[1762830760046,2.7578599,3626.0,3625.9,0.0845]
[1762830761969,2.75824024,3625.5,3625.4,0.002]
[1762830762280,5.69877642,3625.5,3625.4,0.002]
[1762830762882,6.16687642,3625.5,3625.4,0.002]
[1762830763790,5.69877642,3625.5,3625.4,0.002]
[1762830765105,6.62137642,3625.5,3625.4,0.002]
[1762830765264,6.16687642,3625.5,3625.4,0.002]
[1762830766270,5.69877642,3625.5,3625.4,0.0865]
[1762830766588,6.34177642,3625.5,3625.4,0.002]
[1762830767906,7.26437642,3625.5,3625.4,0.002]
[1762830773795,7.26437642,3625.5,3624.6,0.002]
[1762830773796,3.92442416,3625.1,3624.6,0.002]
[1762830774011,7.79406875,3625.1,3624.6,0.002]
[1762830774199,8.24856875,3625.1,3624.6,0.002]
[1762830774564,7.60556875,3625.1,3624.6,0.002]
[1762830774768,8.24856875,3625.1,3624.6,0.002]
[1762830775007,9.94292684,3625.1,3624.6,0.002]
[1762830775208,10.68626998,3625.1,3624.6,0.002]
[1762830775413,9.94292684,3625.1,3624.6,0.002]
[1762830775613,10.68626998,3625.1,3624.6,0.002]
[1762830776022,9.94292684,3625.1,3624.6,0.002]
[1762830780613,16.28292684,3625.1,3624.6,0.002]
[1762830781500,10.79290268,3625.1,3625.0,0.0865]
[1762830781738,5.42325675,3625.1,3625.0,0.0865]
[1762830781998,5.90875675,3625.1,3625.0,0.002]
[1762830782213,6.39045675,3625.1,3625.0,0.002]
[1762830782412,7.47309782,3625.1,3625.0,0.002]
[1762830782612,6.91414267,3625.1,3625.0,0.0865]
[1762830782913,8.11609782,3625.1,3625.0,0.002]
[1762830783310,7.63439782,3625.1,3625.0,0.002]
[1762830783918,8.11609782,3625.1,3625.0,0.002]
[1762830784734,9.37580982,3625.1,3625.0,0.002]
[1762830784899,10.12612367,3625.1,3625.0,0.002]
[1762830785101,9.37580982,3625.1,3625.0,0.002]
[1762830787340,9.71787882,3625.1,3625.0,0.002]
[1762830787539,2.75892512,3624.6,3624.5,0.002]
[1762830787835,7.03383728,3624.6,3624.5,0.002]
[1762830791376,7.4702488,3624.6,3624.5,0.002]
[1762830791788,7.03383728,3624.6,3624.5,0.002]
[1762830793373,3.40192512,3624.6,3624.5,0.002]
[1762830793566,7.31671321,3624.6,3624.5,0.002]
[1762830794079,7.80221321,3624.6,3624.5,0.002]
[1762830794755,7.31671321,3624.6,3624.5,0.002]
[1762830794954,2.75892512,3624.6,3624.5,0.0865]
[1762830795155,2.75892512,3624.6,3624.5,0.171]
[1762830795366,2.75892512,3624.6,3624.5,0.0865]
[1762830795978,2.75892512,3624.6,3624.5,0.002]
[1762830796871,5.60387499,3624.6,3624.5,0.002]
[1762830797184,5.60387499,3624.6,3624.5,0.171]
[1762830797562,5.60387499,3624.6,3624.5,0.0865]
[1762830797764,2.75892512,3624.6,3624.5,0.171]
[1762830800602,2.84594987,3625.1,3624.5,0.171]
[1762830800774,0.001,3625.1,3625.0,0.0845]
[1762830800974,0.001,3625.1,3625.0,0.169]
[1762830802167,0.001,3625.1,3625.0,0.46177602]
[1762830802595,0.001,3625.1,3625.0,0.169]
[1762830803581,0.001,3625.1,3625.0,0.574504]
[1762830803781,0.001,3625.5,3625.3,3.25833801]
[1762830804006,0.001,3625.5,3625.4,0.7265]
[1762830804216,0.001,3625.5,3625.4,0.0845]
[1762830804507,2.75856211,3625.1,3624.9,0.642]
[1762830804693,2.75862068,3625.0,3624.9,0.642]
[1762830805110,2.75862068,3625.0,3624.9,0.7265]
[1762830808395,2.75892512,3624.6,3624.5,0.002]
[1762830808625,3.22442512,3624.6,3624.5,0.002]
[1762830809107,3.23392621,3624.8,3624.5,0.002]
[1762830809108,2.75882621,3624.8,3624.5,0.0865]
[1762830809288,4.15429193,3625.0,3624.5,0.0865]
[1762830809516,3.22442512,3624.6,3624.5,0.002]
[1762830809906,2.75892512,3624.6,3624.5,0.002]
[1762830810108,2.75892512,3624.6,3624.5,0.0865]
[1762830810294,3.22442512,3624.6,3624.5,0.002]
[1762830810909,2.75892512,3624.6,3624.5,0.002]
[1762830813046,2.75892512,3624.6,3624.5,0.0865]
[1762830813740,2.75892512,3624.6,3624.5,0.002]
[1762830814547,2.75892512,3624.6,3624.5,0.0865]
[1762830817246,0.74214799,3625.7,3624.5,0.0865]
[1762830817447,0.74214799,3625.7,3624.7,0.0845]
[1762830817448,3.87523273,3625.7,3624.7,0.0845]
[1762830817647,2.75867223,3625.0,3624.7,0.0845]
[1762830817851,2.75924135,3625.5,3625.4,0.0845]
[1762830818379,0.001,3625.5,3625.4,0.0845]
[1762830818534,0.001,3625.5,3625.4,0.169]
[1762830819137,0.001,3625.5,3625.4,0.0845]
[1762830819323,2.75924024,3625.5,3625.4,0.0845]
[1762830820073,0.001,3625.5,3625.4,0.0845]
[1762830820316,0.001,3625.5,3625.4,0.169]
[1762830821454,0.001,3625.5,3625.4,0.0845]
[1762830822769,0.001,3625.5,3625.4,0.169]
[1762830823589,0.001,3625.5,3625.4,0.7265]
[1762830824807,0.001,3625.5,3625.4,5.32902832]
[1762830825109,0.001,3625.5,3625.4,5.35661148]
[1762830825494,2.75831632,3625.4,3624.4,0.97293919]
[1762830825670,0.4665,3625.5,3624.2,1.46140879]
[1762830825671,0.4665,3625.5,3624.7,1.665216]
[1762830825868,2.75832379,3625.4,3624.7,3.16433557]
[1762830826070,2.75925996,3625.5,3624.8,4.01847433]
[1762830826298,2.75925996,3625.5,3624.8,4.10297433]
[1762830826595,2.75833181,3625.4,3624.8,0.0845]
[1762830826795,2.75924048,3625.5,3624.8,2.84322408]
[1762830827092,0.001,3625.5,3625.3,0.0845]
[1762830827293,0.001,3625.5,3625.4,0.642]
[1762830827501,0.001,3625.5,3625.4,0.7265]
[1762830827924,2.75924024,3625.5,3625.4,0.7265]
[1762830828093,2.75924024,3625.5,3625.4,0.642]
[1762830828925,0.001,3625.5,3625.4,0.642]
[1762830829227,0.001,3625.5,3625.4,0.7265]
[1762830832519,2.75924024,3625.5,3625.4,0.7265]
[1762830833217,2.75924024,3625.5,3625.4,0.642]
[1762830833417,0.001,3625.5,3625.4,0.642]
[1762830833621,2.75924024,3625.5,3625.4,0.642]
[1762830834119,0.001,3625.5,3625.4,0.642]
[1762830834420,2.75924024,3625.5,3625.4,0.642]
[1762830834613,0.001,3625.5,3625.4,0.642]
[1762830834817,2.75924024,3625.5,3625.4,0.642]
[1762830834994,0.001,3625.5,3625.4,0.642]
[1762830836144,0.001,3625.5,3625.4,0.7265]
[1762830836798,0.001,3625.5,3625.4,0.642]
[1762830837003,2.75924024,3625.5,3625.4,0.642]
[1762830837429,3.22794024,3625.5,3625.4,0.642]
[1762830839104,4.28114933,3625.5,3625.4,0.642]
[1762830839749,1.52290909,3625.5,3624.2,0.002]
[1762830839916,2.75862068,3625.0,3624.9,0.642]
[1762830840125,3.31033442,3625.0,3624.9,0.642]
[1762830840417,3.68192068,3625.0,3624.9,0.642]
[1762830840821,0.59960909,3625.5,3624.9,0.7265]
[1762830841062,0.59960909,3625.5,3625.1,0.0845]
[1762830841354,0.59960909,3625.5,3625.4,0.0845]
[1762830841355,0.001,3625.5,3625.4,0.0845]
[1762830841510,2.75924024,3625.5,3624.9,0.642]
[1762830841854,0.001,3625.5,3625.4,0.0845]
[1762830843112,0.001,3625.5,3625.4,0.7265]
[1762830843559,0.001,3625.5,3625.4,0.811]
[1762830846021,0.001,3625.5,3625.4,0.7265]
[1762830846219,0.001,3625.5,3625.1,0.002]
[1762830846220,0.4697,3625.5,3625.1,0.002]
[1762830846415,0.001,3625.5,3625.4,0.0845]
[1762830846906,0.001,3625.5,3625.3,0.642]
[1762830847405,2.75840631,3625.3,3625.1,0.002]
[1762830847606,6.06899602,3625.2,3625.1,0.002]
[1762830848042,0.001,3625.5,3625.1,0.0865]
[1762830848222,0.001,3625.5,3625.4,0.0845]
[1762830848424,0.001,3625.5,3625.4,0.7265]
[1762830848725,3.68254024,3625.5,3625.4,0.642]
[1762830848966,4.61078599,3625.5,3625.4,0.642]
[1762830849114,2.75846849,3625.2,3625.1,0.002]
[1762830849313,3.22716849,3625.2,3625.1,0.002]
[1762830850748,2.75845497,3625.3,3625.1,0.0865]
[1762830850953,2.75846849,3625.2,3625.1,0.002]
[1762830853738,3.22716849,3625.2,3625.1,0.002]
[1762830854734,7.26052957,3625.2,3625.1,0.002]
[1762830856012,0.74228036,3625.4,3625.1,0.0865]
[1762830856210,0.001,3625.5,3625.1,0.002]
[1762830856519,0.001,3625.5,3625.2,0.083]
[1762830857108,2.75925382,3625.5,3625.2,0.083]
[1762830857514,0.001,3625.5,3625.2,0.083]
[1762830857947,2.75925719,3625.5,3625.2,0.083]
[1762830858145,0.001,3625.5,3625.2,0.083]
[1762830858345,2.75831632,3625.4,3625.2,0.083]
[1762830858535,2.75925924,3625.5,3625.2,0.083]
[1762830858740,0.001,3625.5,3625.2,0.083]
[1762830858937,2.75929551,3625.5,3625.2,0.083]
[1762830859139,2.75846849,3625.2,3625.1,0.002]
[1762830859352,6.64417047,3625.2,3625.1,0.002]
[1762830859558,2.75877289,3624.8,3624.7,0.002]
[1762830859735,3.42047289,3624.8,3624.7,0.002]
[1762830859920,3.87507289,3624.8,3624.7,0.002]
[1762830860118,4.81430272,3624.8,3624.7,0.002]
[1762830866768,5.45630272,3624.8,3624.7,0.002]
[1762830869175,4.16670272,3624.8,3624.7,0.002]
[1762830869642,3.69800272,3624.8,3624.7,0.002]
[1762830869846,4.16910272,3624.8,3624.7,0.002]
[1762830870571,3.69800272,3624.8,3624.7,0.002]
[1762830871065,0.1867,3625.4,3624.7,0.0885]
[1762830871268,2.75877289,3624.8,3624.7,0.0885]
[1762830871777,2.75853206,3625.2,3624.7,0.175]
[1762830871983,0.001,3625.5,3624.9,0.0865]
[1762830872279,0.001,3625.5,3624.7,0.002]
[1762830872280,0.46,3625.4,3624.7,0.002]
[1762830872477,2.7587357,3624.9,3624.7,0.002]
[1762830872815,0.46,3625.4,3624.7,0.002]
[1762830872816,0.001,3625.5,3624.8,0.0865]
[1762830872989,0.001,3625.5,3625.4,0.0865]
[1762830873554,2.75924024,3625.5,3625.4,0.0865]
[1762830873749,0.001,3625.5,3625.4,0.0865]
[1762830874353,0.001,3625.5,3625.4,0.173]
[1762830874761,0.001,3625.5,3624.9,0.642]
[1762830874762,2.75862068,3625.0,3624.9,0.642]
[1762830875161,2.75877289,3624.8,3624.7,0.002]
[1762830875695,2.75842174,3625.3,3624.7,0.175]
[1762830875857,0.001,3625.5,3624.8,2.78633813]
[1762830876057,0.001,3625.5,3625.4,0.0865]
[1762830877495,2.75924024,3625.5,3625.4,0.0865]
[1762830878096,0.4721,3625.5,3624.8,0.643]
[1762830878399,2.75844546,3625.3,3624.8,1.11841995]
[1762830878702,0.001,3625.5,3625.4,0.0865]
[1762830882296,2.75924024,3625.5,3625.4,0.0865]
[1762830882598,2.75840868,3625.3,3624.8,0.643]
[1762830882808,0.9321,3625.5,3624.8,0.643]
[1762830882980,2.75833414,3625.4,3624.9,1.259712]
[1762830883362,2.75833414,3625.4,3624.8,1.902712]
[1762830883764,2.75833414,3625.4,3624.8,0.643]
[1762830883965,2.75833414,3625.4,3624.8,1.902712]
[1762830884282,2.75839921,3625.3,3624.8,1.902712]
[1762830884811,2.75833985,3625.4,3624.8,1.902712]
[1762830885604,0.001,3625.5,3625.3,0.0865]
[1762830885800,0.001,3625.5,3624.9,0.0865]
[1762830886098,2.75926679,3625.5,3624.9,2.84518094]
[1762830886486,2.75926679,3625.5,3625.0,1.259712]
[1762830886799,2.75832542,3625.4,3624.8,2.402712]
[1762830887100,0.001,3625.5,3624.8,4.66148004]
[1762830887101,2.75926012,3625.5,3624.8,4.66148004]
[1762830887884,0.001,3625.5,3624.8,4.66148004]
[1762830888097,2.75924276,3625.5,3624.8,4.74798004]
[1762830888587,2.75832182,3625.4,3624.8,1.989212]
[1762830888799,0.001,3625.5,3624.8,0.643]
[1762830888995,0.46,3625.4,3624.8,0.643]
[1762830889296,2.75844907,3625.3,3624.8,0.643]
[1762830889501,2.75847005,3625.2,3624.8,0.643]
[1762830889904,0.001,3625.5,3625.1,0.0865]
[1762830890071,0.001,3625.5,3625.4,0.0865]
[1762830890268,2.75924024,3625.5,3625.4,0.0865]
[1762830890997,2.75924024,3625.5,3625.4,0.7285]
[1762830891703,0.001,3625.5,3625.4,0.7285]
[1762830894806,0.001,3625.5,3625.4,1.315]
[1762830895671,0.001,3625.5,3625.4,1.34258316]
[1762830896003,0.001,3625.5,3625.4,5.76611548]
[1762830896205,0.001,3625.9,3625.8,2.75801202]
[1762830896407,0.001,3626.1,3626.0,4.5175719]
[1762830896570,0.001,3626.1,3626.0,5.27365049]
[1762830896775,0.001,3626.1,3626.0,5.36015049]
[1762830897282,0.001,3626.5,3626.1,4.50949984]
[1762830897605,0.001,3627.3,3626.4,5.0092717]
[1762830897770,0.001,3627.3,3626.8,3.25725157]
[1762830897970,0.001,3627.3,3626.8,4.60346357]
[1762830898207,0.001,3627.3,3626.8,4.68996357]
[1762830898529,0.001,3627.3,3626.8,1.751716]
[1762830898680,0.001,3627.3,3626.8,2.893716]
[1762830899907,0.001,3627.3,3626.8,1.988212]
[1762830900108,2.75787782,3627.3,3626.8,1.988212]
[1762830900618,0.001,3627.3,3626.8,1.988212]
[1762830900913,0.001,3627.3,3626.8,5.33196357]
[1762830901125,0.001,3627.3,3626.8,5.76504008]
[1762830901422,0.001,3627.3,3626.8,5.73746757]
[1762830901624,0.001,3627.3,3626.8,9.15446955]
[1762830901823,0.001,3627.3,3626.8,15.27560055]
[1762830902273,0.001,3627.3,3626.8,14.92826455]
[1762830902474,0.001,3627.3,3626.8,12.52185555]
[1762830903613,0.001,3627.3,3626.8,17.72098055]
[1762830903773,0.001,3627.3,3627.2,2.7569475]
[1762830903969,0.001,3627.3,3627.2,5.6506635]
[1762830904312,0.001,3627.3,3627.2,14.9321245]
[1762830904515,0.4933,3629.9,3628.8,0.405504]
[1762830904721,0.83654856,3629.9,3629.0,3.25557995]
[1762830904904,0.4933,3629.9,3629.0,1.759712]
[1762830905081,0.4933,3629.9,3629.2,2.75542485]
[1762830905278,0.4933,3629.9,3629.3,0.642]
[1762830905509,0.4933,3629.9,3629.4,0.642]
[1762830906614,2.75497275,3629.8,3629.4,0.642]
[1762830906915,2.75489008,3630.0,3629.4,0.642]
[1762830907080,2.75491665,3629.9,3629.4,0.642]
[1762830907610,0.4681,3629.5,3629.4,0.642]
[1762830908381,2.7554241,3629.3,3628.8,0.405504]
[1762830908717,2.7554241,3629.3,3628.9,0.642]
[1762830909011,2.75527971,3629.4,3628.9,1.142]
[1762830909213,2.75514531,3629.6,3628.9,2.401712]
[1762830909519,0.1906,3630.9,3629.6,0.0865]
[1762830909682,0.4571,3630.8,3629.7,0.645]
[1762830910022,0.4571,3630.8,3629.1,0.405504]
[1762830910023,0.4571,3630.8,3629.8,0.645]
[1762830910383,0.4681,3629.9,3629.8,0.645]
[1762830910883,0.6587,3629.9,3629.8,0.645]
[1762830911119,4.21204181,3629.9,3629.8,0.645]
[1762830911290,4.21204181,3629.9,3629.2,1.259712]
[1762830911614,4.21204181,3629.9,3629.3,0.645]
[1762830911615,3.87069682,3629.9,3629.3,0.645]
[1762830911828,3.87069682,3629.9,3628.5,0.0865]
[1762830911829,0.4681,3629.3,3627.9,2.75641006]
[1762830911988,0.4681,3629.2,3628.6,0.5]
[1762830912310,0.4681,3629.2,3628.7,0.645]
[1762830912504,0.4681,3629.2,3628.7,1.904712]
[1762830912706,0.4571,3629.1,3628.7,0.645]
[1762830912916,0.6587,3628.8,3628.7,0.645]
[1762830913223,2.75618764,3628.2,3628.1,0.002]
[1762830913439,3.22428764,3628.2,3628.1,0.002]
[1762830913610,4.62112549,3628.2,3628.1,0.002]
[1762830915138,0.4681,3628.2,3628.1,0.002]
[1762830915312,0.9252,3628.2,3628.1,0.038]
[1762830915514,0.4681,3628.2,3628.1,0.038]
[1762830915745,3.22428764,3628.2,3628.1,0.038]
[1762830915944,3.68138764,3628.2,3628.1,0.038]
[1762830916126,0.9252,3628.2,3628.1,0.038]
[1762830916444,3.68138764,3628.2,3628.1,0.038]
[1762830919410,0.9252,3628.2,3628.1,0.038]
[1762830919610,3.68138764,3628.2,3628.1,0.038]
[1762830920077,4.32513057,3628.2,3628.1,0.038]
[1762830920220,2.75649153,3627.8,3627.7,0.002]
[1762830920419,3.41519153,3627.8,3627.7,0.002]
[1762830920649,3.87229153,3627.8,3627.7,0.002]
[1762830922129,7.47223832,3627.8,3627.7,0.002]
[1762830922360,9.75481369,3627.8,3627.7,0.002]
[1762830922660,10.40081369,3627.8,3627.7,0.002]
[1762830922972,10.40081369,3627.8,3625.1,0.0905]
[1762830922973,1.259712,3627.3,3625.1,0.0905]
[1762830923175,2.75778384,3626.1,3625.1,0.0905]
[1762830923485,3.22641632,3625.4,3625.3,0.646]
[1762830923696,2.75846849,3625.2,3625.1,0.002]
[1762830923834,3.22656849,3625.2,3625.1,0.002]
[1762830924029,3.68366849,3625.2,3625.1,0.002]
[1762830927338,0.4684,3625.2,3625.1,0.002]
[1762830927671,3.71636849,3625.2,3625.1,0.002]
[1762830929204,3.22686849,3625.2,3625.1,0.002]
[1762830929680,3.71636849,3625.2,3625.1,0.002]
[1762830929887,4.36383798,3625.2,3625.1,0.002]
[1762830930053,2.75877289,3624.8,3624.7,0.002]
[1762830930251,3.42187289,3624.8,3624.7,0.002]
[1762830930477,3.91137289,3624.8,3624.7,0.002]
[1762830931774,0.4895,3625.3,3624.7,0.002]
[1762830931949,2.75877289,3624.8,3624.7,0.002]
[1762830932265,2.75846849,3625.2,3624.7,0.002]
[1762830932468,2.75872985,3624.9,3624.7,0.002]
[1762830932650,2.75877289,3624.8,3624.7,0.002]
[1762830932843,3.22717289,3624.8,3624.7,0.002]
[1762830933055,3.71667289,3624.8,3624.7,0.002]
[1762830934173,4.36420794,3624.8,3624.7,0.002]
[1762830934998,0.4684,3624.8,3624.7,0.002]
[1762830935309,2.75877289,3624.8,3624.7,0.002]
[1762830935664,2.758711,3624.9,3624.7,0.002]
[1762830936086,2.75877289,3624.8,3624.7,0.002]
[1762830937293,0.1947,3625.4,3624.7,0.0925]
[1762830937659,2.75847436,3625.2,3624.7,0.0925]
[1762830937862,2.7583929,3625.3,3624.7,0.42404839]
[1762830938088,2.75855594,3625.1,3624.7,0.0925]
[1762830938288,0.1947,3625.4,3624.7,0.0925]
[1762830938562,0.6842,3625.4,3624.7,0.002]
[1762830939190,2.75877289,3624.8,3624.7,0.002]
[1762830939361,3.22717289,3624.8,3624.7,0.002]
[1762830939560,3.71667289,3624.8,3624.7,0.002]
[1762830939755,3.22717289,3624.8,3624.7,0.002]
[1762830939958,3.24805542,3625.1,3624.7,0.002]
[1762830940184,3.22717289,3624.8,3624.7,0.002]
[1762830940622,2.75874766,3624.9,3624.7,0.002]
[1762830940922,0.4895,3625.2,3624.7,0.002]
[1762830940923,3.24797212,3625.2,3624.7,0.002]
[1762830941224,0.1947,3625.4,3624.7,0.002]
[1762830941526,2.7583924,3625.3,3624.7,0.002]
[1762830941693,2.75866971,3625.0,3624.7,0.002]
[1762830942024,2.75846975,3625.2,3624.7,0.002]
[1762830942227,2.75856276,3625.1,3624.7,0.002]
[1762830942423,2.75864458,3625.0,3624.7,0.002]
[1762830942811,2.75870639,3624.9,3624.7,0.002]
[1762830943122,2.75877289,3624.8,3624.7,0.002]
[1762830943328,2.75871929,3624.9,3624.7,0.002]
[1762830943907,3.22717289,3624.8,3624.7,0.002]
[1762830944101,3.87470225,3624.8,3624.7,0.002]
[1762830944312,4.36420225,3624.8,3624.7,0.002]
[1762830945006,3.87470225,3624.8,3624.7,0.002]
[1762830945212,3.22717289,3624.8,3624.7,0.002]
[1762830946102,3.71667289,3624.8,3624.7,0.002]
[1762830946524,3.71667289,3624.8,3624.2,0.648]
[1762830946525,0.4684,3624.4,3624.2,0.002]
[1762830946725,7.1502404,3624.3,3624.2,0.002]
[1762830946924,4.03979361,3624.3,3624.2,0.002]
[1762830948645,7.6397404,3624.3,3624.2,0.002]
[1762830948949,4.03979361,3624.3,3624.2,0.002]
[1762830951648,2.75915349,3624.3,3624.2,0.002]
[1762830952151,0.4895,3624.8,3624.2,0.1005]
[1762830952336,2.75915349,3624.3,3624.2,0.002]
[1762830952647,2.75905329,3624.5,3624.2,0.002]
[1762830952858,0.4895,3624.8,3624.2,0.002]
[1762830953029,2.75901055,3624.5,3624.2,0.002]
[1762830953550,2.75885164,3624.7,3624.2,0.002]
[1762830953725,2.75882991,3624.8,3624.2,0.002]
[1762830953930,2.75886756,3624.7,3624.2,0.002]
[1762830954127,2.75886756,3624.7,3624.2,0.27853677]
[1762830955250,0.001,3625.1,3624.6,0.0985]
[1762830955558,0.001,3625.1,3625.0,0.0985]
[1762830955954,0.001,3625.1,3625.0,0.197]
[1762830956252,0.001,3625.1,3625.0,0.0985]
[1762830956453,0.001,3625.1,3625.0,2.85712068]
[1762830956629,0.001,3625.1,3625.0,0.197]
[1762830957360,0.4976,3625.1,3624.1,0.002]
[1762830957652,0.4976,3625.1,3625.0,0.0985]
[1762830957653,0.001,3625.1,3625.0,0.0985]
[1762830958152,0.001,3625.1,3625.0,0.197]
[1762830958355,0.001,3625.1,3625.0,0.2245862]
[1762830958752,0.001,3625.1,3625.0,0.64889186]
[1762830958938,0.001,3625.1,3625.0,0.55039186]
[1762830959140,0.001,3625.1,3625.0,1.19739186]
[1762830959380,0.001,3625.1,3625.0,1.16980566]
[1762830959555,0.001,3625.1,3625.0,0.7455]
[1762830960256,0.001,3625.1,3625.0,0.647]
[1762830960257,3.25614459,3625.1,3625.0,0.647]
[1762830960432,3.72904459,3625.1,3625.0,0.647]
[1762830961268,3.72904459,3625.1,3624.2,0.002]
[1762830961269,2.7590923,3624.4,3624.2,0.002]
[1762830961454,2.7590923,3624.4,3624.3,0.528]
[1762830961628,2.75891914,3624.7,3624.3,0.6265]
[1762830962028,2.75894651,3624.6,3624.3,0.6265]
[1762830962435,2.7590176,3624.5,3624.3,0.6265]
[1762830962725,3.25567736,3624.4,3624.3,0.528]
[1762830962930,2.75903452,3624.5,3624.3,0.647]
[1762830963150,0.34133381,3625.0,3624.3,0.647]
[1762830963345,0.001,3625.1,3624.3,0.7455]
[1762830963646,2.75954781,3625.1,3624.5,1.259712]
[1762830963862,2.75862621,3625.0,3624.4,1.259712]
[1762830964432,2.75956586,3625.1,3624.4,4.01877473]
[1762830964637,0.001,3625.1,3625.0,0.0985]
[1762830964951,0.001,3625.1,3625.0,0.7455]
[1762830965956,0.001,3625.1,3625.0,0.647]
[1762830966264,0.001,3625.1,3623.9,3.60194679]
[1762830966265,0.001,3625.1,3624.3,0.0985]
[1762830966466,0.001,3625.1,3624.6,2.75889965]
[1762830966666,0.001,3625.1,3625.0,0.0985]
[1762830966838,0.001,3625.1,3625.0,0.647]
[1762830967454,3.25614459,3625.1,3625.0,0.647]
[1762830969172,2.75885836,3624.7,3624.2,0.002]
[1762830969339,2.75885836,3624.7,3624.3,0.646]
[1762830969539,0.9705,3625.1,3624.3,0.646]
[1762830969540,0.1809,3624.9,3624.3,0.646]
[1762830969739,2.75905673,3624.5,3624.3,0.646]
[1762830970241,0.001,3625.1,3625.0,3.16412468]
[1762830970435,0.001,3625.1,3625.0,5.17033668]
[1762830970662,0.001,3625.1,3625.0,2.006212]
[1762830971259,0.001,3625.1,3625.0,4.76483268]
[1762830971574,0.001,3625.1,3625.0,2.006212]
[1762830973281,0.001,3625.1,3625.0,4.76483268]
[1762830974581,0.001,3625.1,3625.0,4.79241888]
[1762830974766,0.001,3625.1,3625.0,11.38694468]
[1762830974940,0.001,3625.9,3625.7,4.92330409]
[1762830975150,0.001,3625.9,3625.8,4.42322802]
[1762830975444,0.001,3625.9,3625.8,12.67199714]
[1762830975669,0.4729,3627.5,3626.6,1.759712]
[1762830975867,0.4729,3627.5,3626.7,3.43290086]
[1762830976056,3.22962715,3627.5,3626.7,0.648]
[1762830976269,0.1916,3627.8,3627.4,0.0975]
[1762830976270,0.001,3627.8,3627.4,0.0975]
[1762830976469,0.001,3627.8,3626.7,0.648]
[1762830976470,0.001,3627.8,3627.7,3.75957152]
[1762830976670,0.001,3627.8,3627.7,5.07478352]
[1762830976876,0.001,3627.8,3627.7,5.57478352]
[1762830979214,0.001,3628.2,3628.1,4.9214796]
[1762830979424,0.001,3628.6,3628.1,9.39298902]
[1762830979627,0.001,3628.6,3628.5,8.61862255]
[1762830979886,0.001,3628.6,3628.5,9.26762255]
[1762830980118,0.001,3628.6,3628.5,5.66767576]